[Event "25th Abu Dhabi Open 2018"]
[Site "Abu Dhabi"]
[Date "2018.08.15"]
[Round "9"]
[White "Loay, Sameer"]
[Black "Umbetov, Kazybek"]
[Result "0-1"]
[ECO "A06"]
[WhiteElo "2043"]
[BlackElo "2055"]
[Annotator "NA"]
[PlyCount "104"]
[EventDate "2018.08.05"]
[EventType "swiss"]
[EventCountry "UAE"]
[SourceTitle "playchess.com"]
[Source "ChessBase"]
[SourceQuality "1"]
[TimeControl "5400+30"]

1. Nf3 {[%emt 0:02:46]} d5 {[%emt 0:00:00]} 2. g3 {[%emt 0:00:04]} Nf6 {[%emt 0:00:00]} 3. Bg2 {[%emt 0:00:06]} c6 {[%emt 0:00:00]} 4. O-O {[%emt 0:00:05]} Bf5 {[%emt 0:00:07]} 5. d3 {[%emt 0:00:06]} e6 {[%emt 0:00:22]} 6. Nbd2 {[%emt 0:00:11]} Be7 {[%emt 0:00:15]} 7. Nh4 {[%emt 0:00:26]} Bg4 {[%emt 0:00:15]} 8. h3 {[%emt 0:00:05]} Bh5 {[%emt 0:00:03]} 9. g4 {[%emt 0:00:07]} Nfd7 {[%emt 0:01:08]} 10. gxh5 {[%emt 0:00:08]} Bxh4 {[%emt 0:00:08]} 11. Nf3 {[%emt 0:02:36]} Bf6 {[%emt 0:02:19]} 12. c4 {[%emt 0:02:28]} Na6 {[%emt 0:02:14]} 13. Rb1 {[%emt 0:00:29]} dxc4 {[%emt 0:00:52]} 14. dxc4 {[%emt 0:00:09]} Qa5 {[%emt 0:00:31]} 15. a3 {[%emt 0:03:04]} Qxh5 {[%emt 0:02:00]} 16. b4 {[%emt 0:01:56]} Rd8 {[%emt 0:03:40]} 17. Qb3 {[%emt 0:02:37]} O-O {[%emt 0:00:26]} 18. Be3 {[%emt 0:00:05]} Nb6 {[%emt 0:14:50]} 19. a4 {[%emt 0:06:24]} Be7 {[%emt 0:08:46]} 20. a5 {[%emt 0:00:06]} Nc8 {[%emt 0:00:05]} 21. Qa4 {[%emt 0:00:33]} Nc7 {[%emt 0:08:47]} 22. Rfd1 {[%emt 0:04:55]} f6 {[%emt 0:10:06]} 23. Rxd8 {[%emt 0:06:43]} Rxd8 {[%emt 0:00:08]} 24. Rd1 {[%emt 0:03:15]} Rxd1+ {[%emt 0:00:30]} 25. Qxd1 {[%emt 0:00:04]} Qe8 {[%emt 0:00:21]} 26. Qb1 {[%emt 0:00:53]} Qd7 {[%emt 0:08:13]} 27. Nd2 {[%emt 0:05:25]} f5 {[%emt 0:05:03]} 28. Nf3 {[%emt 0:00:52]} Bf6 {[%emt 0:02:54]} 29. Bf4 {[%emt 0:00:23]} Ne8 {[%emt 0:06:09]} 30. b5 {[%emt 0:02:30]} cxb5 {[%emt 0:00:36]} 31. cxb5 {[%emt 0:00:20]} Nc7 {[%emt 0:00:45]} 32. Ne5 {[%emt 0:04:20]} Qxb5 {[%emt 0:01:16]} 33. Qxb5 {[%emt 0:05:29]} Nxb5 {[%emt 0:00:01]} 34. Bxb7 {[%emt 0:00:17]} Ncd6 {[%emt 0:00:00]} 35. a6 {[%emt 0:00:49]} g5 {[%emt 0:00:38]} 36. Nd7 {[%emt 0:00:26]} gxf4 {[%emt 0:03:19]} 37. Nxf6+ {[%emt 0:00:06]} Kh8 {[%emt 0:01:29]} 38. Kg2 {[%emt 0:00:59]} e5 {[%emt 0:00:23]} 39. Nd7 {[%emt 0:00:18]} e4 {[%emt 0:00:29]} 40. Nf6 {[%emt 0:00:12]} Nd4 {[%emt 0:00:43]} 41. e3 {[%emt 0:00:55]} f3+ {[%emt 0:01:18]} 42. Kg3 {[%emt 0:01:30]} Ne2+ {[%emt 0:01:54]} 43. Kh4 {[%emt 0:00:05]} Kg7 {[%emt 0:00:37]} 44. Nd5 {[%emt 0:01:01]} Kh6 {[%emt 0:01:41]} 45. Ne7 {[%emt 0:03:05]} Nc1 {[%emt 0:03:50]} 46. Kg3 {[%emt 0:01:13]} Nd3 {[%emt 0:00:55]} 47. Nc6 {[%emt 0:00:33]} f4+ {[%emt 0:00:49]} 48. exf4 {[%emt 0:03:09]} Nf5+ {[%emt 0:00:00]} 49. Kh2 {[%emt 0:00:47]} e3 {[%emt 0:00:14]} 50. Ne7 {[%emt 0:00:09]} Nxe7 {[%emt 0:00:50]} 51. fxe3 {[%emt 0:01:00]} f2 {[%emt 0:00:01]} 52. Kg2 {[%emt 0:00:13]} Nf5 {[%emt 0:00:09]} 0-1

[Event "25th Abu Dhabi Open 2018"]
[Site "Abu Dhabi"]
[Date "2018.08.15"]
[Round "9"]
[White "Soham, Datar"]
[Black "Masrahi, Abdulrahman A"]
[Result "1-0"]
[ECO "A06"]
[WhiteElo "2030"]
[BlackElo "1976"]
[Annotator "NA"]
[PlyCount "111"]
[EventDate "2018.08.05"]
[EventType "swiss"]
[EventCountry "UAE"]
[SourceTitle "playchess.com"]
[Source "ChessBase"]
[SourceQuality "1"]
[TimeControl "5400+30"]

1. Nf3 {[%emt 0:00:00]} d5 {[%emt 0:05:34]} 2. c4 {[%emt 0:00:00]} c6 {[%emt 0:00:09]} 3. g3 {[%emt 0:00:00]} Nf6 {[%emt 0:00:08]} 4. Bg2 {[%emt 0:00:00]} Bf5 {[%emt 0:00:20]} 5. cxd5 cxd5 {[%emt 0:00:08]} 6. Qb3 {[%emt 0:00:15]} Bc8 {[%emt 0:07:13]} 7. Nc3 {[%emt 0:01:01]} Nc6 {[%emt 0:02:42]} 8. O-O {[%emt 0:01:29]} e6 {[%emt 0:00:17]} 9. d3 {[%emt 0:00:25]} Be7 {[%emt 0:01:07]} 10. Bf4 {[%emt 0:00:38]} a6 {[%emt 0:01:33]} 11. Rac1 {[%emt 0:01:50]} Na5 {[%emt 0:08:26]} 12. Qd1 {[%emt 0:10:49]} Nc6 {[%emt 0:10:15]} 13. Qb3 {[%emt 0:01:20]} Na5 {[%emt 0:04:11]} 14. Qc2 {[%emt 0:00:08]} Nc6 {[%emt 0:01:55]} 15. e4 {[%emt 0:02:10]} O-O {[%emt 0:01:30]} 16. exd5 {[%emt 0:05:15]} Nb4 {[%emt 0:02:19]} 17. Qe2 {[%emt 0:03:30]} Nfxd5 {[%emt 0:05:03]} 18. Nxd5 {[%emt 0:07:11]} Nxd5 {[%emt 0:00:28]} 19. a3 {[%emt 0:06:37]} Bd7 {[%emt 0:13:46]} 20. Be5 {[%emt 0:08:17]} Rc8 {[%emt 0:02:34]} 21. Rc4 {[%emt 0:00:17]} Bb5 {[%emt 0:00:34]} 22. Rxc8 {[%emt 0:00:06]} Qxc8 {[%emt 0:00:06]} 23. Nd4 {[%emt 0:00:05]} Qd7 {[%emt 0:11:27]} 24. Nxb5 {[%emt 0:05:54]} Qxb5 {[%emt 0:00:54]} 25. Rc1 {[%emt 0:02:43]} Rd8 {[%emt 0:04:13]} 26. h4 {[%emt 0:04:04]} h6 {[%emt 0:13:20]} 27. Rc4 {[%emt 0:11:14]} b6 {[%emt 0:00:55]} 28. Bf3 {[%emt 0:06:55]} Bf6 {[%emt 0:01:55]} 29. Rg4 h5 30. Rc4 {[%emt 0:03:57]} Bxe5 {[%emt 0:01:14]} 31. Qxe5 {[%emt 0:00:07]} g6 {[%emt 0:00:13]} 32. Qg5 {[%emt 0:01:36]} Qd7 {[%emt 0:00:52]} 33. Rd4 {[%emt 0:01:49]} Kh7 {[%emt 0:00:34]} 34. Be4 {[%emt 0:06:15]} Kg7 {[%emt 0:00:56]} 35. g4 {[%emt 0:01:19]} hxg4 {[%emt 0:00:40]} 36. h5 {[%emt 0:00:16]} f5 {[%emt 0:00:02]} 37. Qxg6+ {[%emt 0:00:08]} Kh8 {[%emt 0:00:40]} 38. Bxd5 {[%emt 0:01:31]} exd5 {[%emt 0:00:01]} 39. Rf4 {[%emt 0:01:53]} Rf8 {[%emt 0:00:04]} 40. Qxb6 {[%emt 0:00:18]} Qf7 {[%emt 0:01:30]} 41. Qh6+ {[%emt 0:01:03]} Kg8 {[%emt 0:00:05]} 42. Qxa6 {[%emt 0:00:41]} Qxh5 {[%emt 0:00:17]} 43. Qe6+ {[%emt 0:00:05]} Qf7 {[%emt 0:00:03]} 44. Qxf7+ {[%emt 0:00:20]} Rxf7 {[%emt 0:00:02]} 45. Kg2 {[%emt 0:00:42]} Kg7 {[%emt 0:00:06]} 46. Rd4 {[%emt 0:01:23]} Rd7 {[%emt 0:01:13]} 47. Kg3 {[%emt 0:00:13]} Kf6 {[%emt 0:00:02]} 48. Kf4 {[%emt 0:00:16]} Ke6 {[%emt 0:00:15]} 49. Rb4 {[%emt 0:00:29]} Rd6 {[%emt 0:00:25]} 50. a4 {[%emt 0:00:20]} Rc6 {[%emt 0:00:37]} 51. a5 {[%emt 0:00:30]} Rc2 {[%emt 0:00:11]} 52. Rb6+ {[%emt 0:00:05]} Kd7 {[%emt 0:00:10]} 53. Kxf5 {[%emt 0:00:07]} Rxf2+ {[%emt 0:00:16]} 54. Kxg4 {[%emt 0:00:04]} Kc7 {[%emt 0:00:30]} 55. Rb3 {[%emt 0:00:25]} Rf1 {[%emt 0:00:51]} 56. a6 {[%emt 0:00:06]} 1-0

[Event "25th Abu Dhabi Open 2018"]
[Site "Abu Dhabi"]
[Date "2018.08.15"]
[Round "9"]
[White "Laabi Chian, Majid"]
[Black "Huang, Zixiu"]
[Result "0-1"]
[ECO "A45"]
[WhiteElo "2013"]
[BlackElo "1864"]
[Annotator "NA"]
[PlyCount "84"]
[EventDate "2018.08.05"]
[EventType "swiss"]
[EventCountry "UAE"]
[SourceTitle "playchess.com"]
[Source "ChessBase"]
[SourceQuality "1"]
[TimeControl "5400+30"]

1. d4 Nf6 2. c3 d5 3. Bf4 e6 4. Nd2 c5 5. e3 Nc6 6. Bd3 c4 7. Bc2 b5 8. a3 Be7 9. h3 Bb7 10. Ngf3 a5 11. O-O O-O 12. Ne5 Nxe5 13. dxe5 Nd7 14. Nf3 Re8 15. Nd4 b4 16. Bg3 b3 17. Bb1 Bf8 18. f4 g6 19. h4 f5 20. exf6 Nxf6 21. Bh2 Bc5 22. g4 Qb6 23. Rf2 Re7 24. Rg2 Kh8 25. Qe1 Nd7 26. h5 e5 27. fxe5 Nxe5 28. Qg3 Rf8 29. Rf2 Rxf2 30. Qxf2 Kg7 31. hxg6 hxg6 32. Qf4 Qf6 33. Bf5 Bxd4 34. cxd4 Nf7 35. Kh1 gxf5 36. gxf5 Kh7 37. Rg1 Nh6 38. Rg6 Qf8 39. Qg5 c3 40. Bf4 Kh8 41. Rxh6+ Qxh6+ 42. Qxh6+ Rh7 {Qg5 Rh6+ Qf6+ Rxf6} 0-1

[Event "25th Abu Dhabi Open 2018"]
[Site "Abu Dhabi"]
[Date "2018.08.15"]
[Round "9"]
[White "Stanley, Samson P."]
[Black "Mustafayev, Farid"]
[Result "0-1"]
[ECO "D05"]
[WhiteElo "1927"]
[BlackElo "2127"]
[Annotator "NA"]
[PlyCount "78"]
[EventDate "2018.08.05"]
[EventType "swiss"]
[EventCountry "UAE"]
[SourceTitle "playchess.com"]
[Source "ChessBase"]
[SourceQuality "1"]
[TimeControl "5400+30"]

1. d4 d5 2. e3 Nf6 3. Bd3 g6 4. c4 c6 5. Nc3 Bg7 6. Nf3 O-O 7. O-O Nbd7 8. cxd5 Nxd5 9. Qb3 Nxc3 10. bxc3 Nc5 11. Qc2 Nxd3 12. Qxd3 e5 13. h3 Re8 14. Qc2 exd4 15. cxd4 Qd5 16. Nd2 Bf5 17. Qb3 Qd7 18. Bb2 b5 19. Rfc1 Rac8 20. Ba3 a5 21. Bc5 a4 22. Qc3 Bh6 23. g4 Bxg4 24. hxg4 Qxg4+ 25. Kf1 Rcd8 26. Ke1 Rd5 27. Nf1 Qg1 28. Rc2 Rf5 29. d5 Rxd5 30. Rd2 Rf5 31. Rad1 Bg5 32. Re2 h5 33. e4 Rfe5 34. Rd4 Qh1 35. Qc2 R5e6 36. Rb4 h4 37. Be3 Bd8 38. f3 Ba5 39. Rh2 Qxf3 0-1

[Event "25th Abu Dhabi Open 2018"]
[Site "Abu Dhabi"]
[Date "2018.08.15"]
[Round "9"]
[White "Sanskriti, Goyal"]
[Black "Salem, Ahmed Salem"]
[Result "1/2-1/2"]
[ECO "D59"]
[WhiteElo "1924"]
[BlackElo "1977"]
[Annotator "NA"]
[PlyCount "75"]
[EventDate "2018.08.05"]
[EventType "swiss"]
[EventCountry "UAE"]
[SourceTitle "playchess.com"]
[Source "ChessBase"]
[SourceQuality "1"]
[TimeControl "5400+30"]

1. d4 Nf6 2. c4 e6 3. Nc3 d5 4. Bg5 Be7 5. Nf3 h6 6. Bh4 O-O 7. e3 b6 8. cxd5 Nxd5 9. Bxe7 Qxe7 10. Rc1 Nxc3 11. Rxc3 Bb7 12. Bd3 Rc8 13. Qc2 Na6 14. a3 c5 15. Bxa6 Bxa6 16. dxc5 bxc5 17. Qa4 Qd6 18. Nd2 Rd8 19. Ne4 Qd5 20. f3 Rab8 21. b4 Qa2 22. Qxa6 Qb1+ 23. Kf2 Qxh1 24. Rxc5 Rd1 25. Kg3 Qe1+ 26. Kh3 g5 27. g3 Qf1+ 28. Qxf1 Rxf1 29. Kg2 Ra1 30. Ra5 Ra2+ 31. Kh3 Rd8 32. Rxa7 Rd3 33. b5 Rdxa3 34. Rxa3 Rxa3 35. b6 Rb3 36. Nf6+ Kf8 37. Kg4 Ke7 38. Ng8+ 1/2-1/2

[Event "25th Abu Dhabi Open 2018"]
[Site "Abu Dhabi"]
[Date "2018.08.15"]
[Round "9"]
[White "Sahithi, Varshini M"]
[Black "Ovezdurdiyeva, Jemal"]
[Result "0-1"]
[ECO "A01"]
[WhiteElo "1728"]
[BlackElo "2041"]
[Annotator "NA"]
[PlyCount "124"]
[EventDate "2018.08.05"]
[EventType "swiss"]
[EventCountry "UAE"]
[SourceTitle "playchess.com"]
[Source "ChessBase"]
[SourceQuality "1"]
[TimeControl "5400+30"]

1. b3 {[%emt 0:00:00]} e5 {[%emt 0:00:48]} 2. Bb2 {[%emt 0:00:12]} d6 {[%emt 0:00:47]} 3. e3 {[%emt 0:01:06]} Be6 {[%emt 0:00:17]} 4. Nf3 {[%emt 0:03:08]} Be7 {[%emt 0:03:00]} 5. c4 {[%emt 0:05:05]} f5 {[%emt 0:06:12]} 6. Nc3 {[%emt 0:07:55]} Bf6 {[%emt 0:05:54]} 7. d4 {[%emt 0:06:04]} e4 {[%emt 0:03:13]} 8. Nd2 {[%emt 0:02:04]} Ne7 {[%emt 0:04:12]} 9. g4 {[%emt 0:16:34]} O-O {[%emt 0:07:47]} 10. gxf5 {[%emt 0:04:58]} Nxf5 {[%emt 0:00:14]} 11. Ndxe4 {[%emt 0:03:47]} Bh4 {[%emt 0:01:21]} 12. Qd2 {[%emt 0:03:32]} Nd7 {[%emt 0:10:13]} 13. O-O-O {[%emt 0:04:32]} Nh6 {[%emt 0:02:04]} 14. f4 {[%emt 0:04:33]} Qe7 {[%emt 0:01:47]} 15. Rg1 {[%emt 0:04:52]} Rae8 {[%emt 0:06:28]} 16. Bd3 {[%emt 0:09:33]} g6 {[%emt 0:14:36]} 17. Kb1 {[%emt 0:03:08]} Bf5 {[%emt 0:07:46]} 18. d5 {[%emt 0:02:07]} Ng4 {[%emt 0:03:19]} 19. Bc2 {[%emt 0:04:18]} Nc5 {[%emt 0:02:50]} 20. Nxc5 {[%emt 0:04:28]} Bxc2+ {[%emt 0:00:11]} 21. Qxc2 {[%emt 0:00:27]} Nxe3 {[%emt 0:00:51]} 22. Rxg6+ {[%emt 0:01:40]} hxg6 {[%emt 0:04:37]} 23. Qxg6+ {[%emt 0:00:10]} Qg7 {[%emt 0:00:04]} 24. Qxg7+ {[%emt 0:01:25]} Kxg7 {[%emt 0:00:01]} 25. Rg1+ {[%emt 0:00:51]} Kh7 {[%emt 0:00:16]} 26. Ne6 {[%emt 0:01:07]} Rg8 {[%emt 0:00:24]} 27. Rh1 {[%emt 0:02:05]} c6 {[%emt 0:01:12]} 28. Bc1 {[%emt 0:01:17]} Nf5 {[%emt 0:01:36]} 29. Ne4 {[%emt 0:01:19]} Rg2 {[%emt 0:00:25]} 30. Ba3 {[%emt 0:00:36]} cxd5 {[%emt 0:03:42]} 31. cxd5 {[%emt 0:00:10]} Ne3 {[%emt 0:00:09]} 32. Nxd6 {[%emt 0:00:45]} Reg8 {[%emt 0:00:03]} 33. Nc7 {[%emt 0:01:08]} Rg1+ {[%emt 0:00:55]} 34. Rxg1 {[%emt 0:00:08]} Rxg1+ {[%emt 0:00:02]} 35. Bc1 {[%emt 0:00:10]} Be7 {[%emt 0:00:38]} 36. Ndb5 {[%emt 0:01:02]} a6 {[%emt 0:03:34]} 37. d6 {[%emt 0:00:16]} Bf6 {[%emt 0:00:05]} 38. d7 {[%emt 0:01:18]} axb5 {[%emt 0:00:32]} 39. Ne6 {[%emt 0:00:05]} Nd5 {[%emt 0:00:28]} 40. d8=Q {[%emt 0:00:25]} Bxd8 {[%emt 0:00:04]} 41. Nxd8 {[%emt 0:00:03]} Nb4 {[%emt 0:00:25]} 42. Nxb7 {[%emt 0:00:49]} Nd3 {[%emt 0:00:06]} 43. Kc2 {[%emt 0:00:06]} Nxc1 {[%emt 0:00:05]} 44. Nd6 {[%emt 0:00:07]} b4 {[%emt 0:00:26]} 45. Ne4 {[%emt 0:00:40]} Nxa2 {[%emt 0:00:18]} 46. f5 {[%emt 0:00:32]} Rg2+ {[%emt 0:01:06]} 47. Kd3 {[%emt 0:00:15]} Rxh2 {[%emt 0:00:05]} 48. Kc4 {[%emt 0:00:06]} Rh4 {[%emt 0:00:16]} 49. Kd3 {[%emt 0:00:15]} Nc1+ {[%emt 0:00:15]} 50. Kc2 {[%emt 0:00:07]} Rxe4 {[%emt 0:00:05]} 51. Kxc1 {[%emt 0:00:06]} Kg7 {[%emt 0:00:07]} 52. Kd2 {[%emt 0:00:05]} Kf6 {[%emt 0:00:04]} 53. Kd3 {[%emt 0:00:07]} Kxf5 {[%emt 0:00:09]} 54. Kd2 {[%emt 0:00:05]} Ke5 {[%emt 0:00:14]} 55. Kd3 {[%emt 0:00:17]} Kd5 {[%emt 0:00:07]} 56. Kd2 {[%emt 0:00:05]} Kd4 {[%emt 0:00:04]} 57. Kc2 {[%emt 0:00:05]} Re2+ {[%emt 0:00:05]} 58. Kd1 {[%emt 0:00:06]} Kd3 {[%emt 0:00:09]} 59. Kc1 {[%emt 0:00:04]} Rh2 {[%emt 0:00:13]} 60. Kb1 {[%emt 0:00:06]} Kc3 {[%emt 0:00:06]} 61. Ka1 {[%emt 0:00:06]} Kxb3 {[%emt 0:00:08]} 62. Kb1 {[%emt 0:00:13]} Rh1# {[%emt 0:00:04]} 0-1